[Event "*** SCC Grand Prix: Titled Tuesday Blitz"]
[Site "Chess.com"]
[Date "2020.07.14"]
[Round "7"]
[White "ChessArchitect64"]
[Black "metalbattler"]
[Result "1-0"]
[WhiteElo "1867"]
[BlackElo "1969"]
[TimeControl "180+1"]
[EndTime "11:20:52 PDT"]
[Termination "ChessArchitect64 won on time"]

1. d4 {[%clk 0:02:59.1]} 1... d5 {[%clk 0:02:40.7]} 2. Nf3 {[%clk 0:02:57.3]}
2... c6 {[%clk 0:02:39.8]} 3. g3 {[%clk 0:02:53.7]} 3... Nf6 {[%clk 0:02:39.2]}
4. Bg2 {[%clk 0:02:53.3]} 4... Bg4 {[%clk 0:02:38]} 5. O-O {[%clk 0:02:51.1]}
5... Nbd7 {[%clk 0:02:37.6]} 6. c4 {[%clk 0:02:46.3]} 6... e6 {[%clk 0:02:36.7]}
7. Nbd2 {[%clk 0:02:42.9]} 7... Bd6 {[%clk 0:02:36.1]} 8. Qc2 {[%clk 0:02:29]}
8... O-O {[%clk 0:02:33.7]} 9. e4 {[%clk 0:02:25.1]} 9... dxe4 {[%clk
0:02:32.5]} 10. Nxe4 {[%clk 0:02:24.7]} 10... Bf5 {[%clk 0:02:31.9]} 11. Nh4
{[%clk 0:01:53.2]} 11... Bxe4 {[%clk 0:02:29.2]} 12. Bxe4 {[%clk 0:01:51.5]}
12... Nxe4 {[%clk 0:02:30.1]} 13. Qxe4 {[%clk 0:01:51.1]} 13... Be7 {[%clk
0:02:26.9]} 14. Nf3 {[%clk 0:01:46.1]} 14... Nf6 {[%clk 0:02:24.7]} 15. Qe2
{[%clk 0:01:45.8]} 15... Qb6 {[%clk 0:02:20.1]} 16. b3 {[%clk 0:01:35.3]} 16...
Rad8 {[%clk 0:02:13.9]} 17. Bb2 {[%clk 0:01:32.4]} 17... a5 {[%clk 0:02:11.1]}
18. Rab1 {[%clk 0:01:10.4]} 18... Rfe8 {[%clk 0:02:08]} 19. Bc3 {[%clk
0:01:04.8]} 19... Bb4 {[%clk 0:02:02]} 20. Bb2 {[%clk 0:00:57.1]} 20... Nd7
{[%clk 0:01:56.9]} 21. a3 {[%clk 0:00:55.8]} 21... Be7 {[%clk 0:01:52.1]} 22.
Qc2 {[%clk 0:00:53.8]} 22... Nf8 {[%clk 0:01:47.6]} 23. Rfd1 {[%clk 0:00:51.9]}
23... Ng6 {[%clk 0:01:43.5]} 24. h4 {[%clk 0:00:48]} 24... Qc7 {[%clk
0:01:30.2]} 25. h5 {[%clk 0:00:46.8]} 25... Nf8 {[%clk 0:01:28.7]} 26. Qe4
{[%clk 0:00:44.4]} 26... Bf6 {[%clk 0:01:24.1]} 27. Kg2 {[%clk 0:00:43.7]} 27...
Qb6 {[%clk 0:01:12.1]} 28. Rd3 {[%clk 0:00:41.7]} 28... c5 {[%clk 0:01:07.6]}
29. Rbd1 {[%clk 0:00:35.2]} 29... cxd4 {[%clk 0:01:04.7]} 30. Bxd4 {[%clk
0:00:31.3]} 30... Bxd4 {[%clk 0:00:59.5]} 31. Nxd4 {[%clk 0:00:30.7]} 31... Nd7
{[%clk 0:00:47.2]} 32. Nb5 {[%clk 0:00:29.8]} 32... Nf6 {[%clk 0:00:41.1]} 33.
Rxd8 {[%clk 0:00:26.5]} 33... Rxd8 {[%clk 0:00:32.1]} 34. Rxd8+ {[%clk 0:00:26]}
34... Qxd8 {[%clk 0:00:30.4]} 35. Qxb7 {[%clk 0:00:25.6]} 35... Nxh5 {[%clk
0:00:27.6]} 36. Qc7 {[%clk 0:00:22.4]} 36... Qa8+ {[%clk 0:00:24.3]} 37. Kg1
{[%clk 0:00:19.7]} 37... h6 {[%clk 0:00:23.1]} 38. Nd6 {[%clk 0:00:18.6]} 38...
Qf8 {[%clk 0:00:18.2]} 39. c5 {[%clk 0:00:17.9]} 39... Nf6 {[%clk 0:00:16.9]}
40. b4 {[%clk 0:00:17.7]} 40... axb4 {[%clk 0:00:15.5]} 41. axb4 {[%clk
0:00:16.8]} 41... Nd5 {[%clk 0:00:16.4]} 42. Qb7 {[%clk 0:00:16.4]} 42... Qd8
{[%clk 0:00:13.4]} 43. b5 {[%clk 0:00:15.8]} 43... Qf6 {[%clk 0:00:10.8]} 44.
Qxf7+ {[%clk 0:00:10]} 44... Qxf7 {[%clk 0:00:09.5]} 45. Nxf7 {[%clk 0:00:10.4]}
45... Kxf7 {[%clk 0:00:08.5]} 46. b6 {[%clk 0:00:11.3]} 46... Nb4 {[%clk
0:00:04.5]} 47. Kf1 {[%clk 0:00:08.6]} 47... Nc6 {[%clk 0:00:05.4]} 48. Ke2
{[%clk 0:00:08.9]} 48... e5 {[%clk 0:00:05.2]} 49. Kd3 {[%clk 0:00:09.8]} 49...
Ke6 {[%clk 0:00:06.1]} 50. Kc4 {[%clk 0:00:10.7]} 50... g6 {[%clk 0:00:04.1]}
51. Kb5 {[%clk 0:00:11.6]} 51... Kd7 {[%clk 0:00:03.3]} 52. Ka6 {[%clk
0:00:12.5]} 1-0

[Event "*** SCC Grand Prix: Titled Tuesday Blitz"]
[Site "Chess.com"]
[Date "2020.07.14"]
[Round "7"]
[White "Volodar_Murzin"]
[Black "Gabix_94"]
[Result "0-1"]
[WhiteElo "2710"]
[BlackElo "2911"]
[TimeControl "180+1"]
[EndTime "11:20:53 PDT"]
[Termination "Gabix_94 won on time"]

1. e4 {[%clk 0:03:00.9]} 1... c5 {[%clk 0:02:58.1]} 2. Nf3 {[%clk 0:03:00]} 2...
e6 {[%clk 0:02:48.7]} 3. g3 {[%clk 0:02:59]} 3... Nc6 {[%clk 0:02:48.4]} 4. Bg2
{[%clk 0:02:58]} 4... Nf6 {[%clk 0:02:47.8]} 5. Qe2 {[%clk 0:02:58.3]} 5... e5
{[%clk 0:02:46.8]} 6. O-O {[%clk 0:02:57.6]} 6... g6 {[%clk 0:02:46.6]} 7. d3
{[%clk 0:02:55.5]} 7... Bg7 {[%clk 0:02:45.4]} 8. Na3 {[%clk 0:02:54.3]} 8... d6
{[%clk 0:02:43.7]} 9. Nc4 {[%clk 0:02:49.5]} 9... h6 {[%clk 0:02:42.9]} 10. a4
{[%clk 0:02:49.2]} 10... O-O {[%clk 0:02:42.2]} 11. c3 {[%clk 0:02:49.1]} 11...
b6 {[%clk 0:02:38.1]} 12. Nfd2 {[%clk 0:02:44]} 12... Bb7 {[%clk 0:02:32.5]} 13.
f4 {[%clk 0:02:43.7]} 13... exf4 {[%clk 0:02:30.4]} 14. gxf4 {[%clk 0:02:44.6]}
14... d5 {[%clk 0:02:27.6]} 15. exd5 {[%clk 0:02:43.5]} 15... Nxd5 {[%clk
0:02:27.7]} 16. Ne4 {[%clk 0:02:43.9]} 16... Nce7 {[%clk 0:02:19.2]} 17. Ned6
{[%clk 0:02:38.4]} 17... Bc6 {[%clk 0:02:17.6]} 18. f5 {[%clk 0:02:37.3]} 18...
Qd7 {[%clk 0:02:06.6]} 19. Bd2 {[%clk 0:02:03.6]} 19... Nxf5 {[%clk 0:01:43]}
20. Nxf5 {[%clk 0:02:02]} 20... gxf5 {[%clk 0:01:42.4]} 21. Qh5 {[%clk
0:01:37.4]} 21... Nf6 {[%clk 0:01:36.4]} 22. Bxc6 {[%clk 0:01:36.4]} 22... Qxc6
{[%clk 0:01:35.9]} 23. Qxf5 {[%clk 0:01:26.9]} 23... Rae8 {[%clk 0:01:34.4]} 24.
Rae1 {[%clk 0:01:07.1]} 24... Rxe1 {[%clk 0:01:27.2]} 25. Rxe1 {[%clk 0:01:08]}
25... Re8 {[%clk 0:01:27.2]} 26. Rxe8+ {[%clk 0:01:03]} 26... Qxe8 {[%clk
0:01:27.4]} 27. a5 {[%clk 0:00:41.6]} 27... Qe2 {[%clk 0:01:21.8]} 28. axb6
{[%clk 0:00:37]} 28... axb6 {[%clk 0:01:20.2]} 29. Qf1 {[%clk 0:00:34]} 29...
Qe6 {[%clk 0:01:16.2]} 30. Qf3 {[%clk 0:00:27.8]} 30... b5 {[%clk 0:01:12.5]}
31. Ne3 {[%clk 0:00:20.3]} 31... Nd7 {[%clk 0:01:06.7]} 32. Nf5 {[%clk
0:00:19.4]} 32... Ne5 {[%clk 0:01:01.9]} 33. Qe4 {[%clk 0:00:15.2]} 33... Qg6+
{[%clk 0:00:56.5]} 34. Kh1 {[%clk 0:00:14]} 34... Kh7 {[%clk 0:00:52.4]} 35. b4
{[%clk 0:00:09.4]} 35... c4 {[%clk 0:00:51.3]} 36. d4 {[%clk 0:00:07.3]} 36...
Nd3 {[%clk 0:00:50.6]} 37. Qf3 {[%clk 0:00:07.2]} 37... Bf8 {[%clk 0:00:45.6]}
38. d5 {[%clk 0:00:06]} 38... Qf6 {[%clk 0:00:36.9]} 39. Nd4 {[%clk 0:00:04.4]}
39... Qxf3+ {[%clk 0:00:34.1]} 40. Nxf3 {[%clk 0:00:05.3]} 40... Kg6 {[%clk
0:00:35]} 41. Nd4 {[%clk 0:00:04.1]} 41... Kf6 {[%clk 0:00:25.4]} 42. Nxb5
{[%clk 0:00:03.5]} 42... Ke5 {[%clk 0:00:26]} 43. d6 {[%clk 0:00:01.7]} 43...
Bxd6 {[%clk 0:00:25.3]} 44. Bxh6 {[%clk 0:00:02.3]} 44... Be7 {[%clk 0:00:21.9]}
45. Bg7+ {[%clk 0:00:02.9]} 45... Kd5 {[%clk 0:00:20.9]} 46. Bd4 {[%clk
0:00:02.9]} 46... Kc6 {[%clk 0:00:19.9]} 47. Na3 {[%clk 0:00:03.1]} 47... Kd5
{[%clk 0:00:20.3]} 48. Nc2 {[%clk 0:00:03.7]} 48... f5 {[%clk 0:00:18.7]} 49.
Ne3+ {[%clk 0:00:03.3]} 49... Ke4 {[%clk 0:00:18.8]} 50. Nxc4 {[%clk 0:00:03.9]}
50... f4 {[%clk 0:00:19.3]} 51. Nd2+ {[%clk 0:00:03.6]} 51... Kf5 {[%clk
0:00:19.7]} 52. Nf3 {[%clk 0:00:03.2]} 52... Ke4 {[%clk 0:00:19.3]} 53. Kg2
{[%clk 0:00:03.5]} 53... Nb2 {[%clk 0:00:17.5]} 54. b5 {[%clk 0:00:03.6]} 54...
Nc4 {[%clk 0:00:17.7]} 55. h4 {[%clk 0:00:03]} 55... Kf5 {[%clk 0:00:16.4]} 56.
b6 {[%clk 0:00:02.2]} 56... Bd6 {[%clk 0:00:16.5]} 57. Kf2 {[%clk 0:00:01.7]}
57... Kg4 {[%clk 0:00:16.4]} 58. Ke2 {[%clk 0:00:02.1]} 58... Na5 {[%clk
0:00:16]} 0-1

[Event "*** SCC Grand Prix: Titled Tuesday Blitz"]
[Site "Chess.com"]
[Date "2020.07.14"]
[Round "7"]
[White "gena217"]
[Black "econpower"]
[Result "1-0"]
[WhiteElo "2918"]
[BlackElo "2677"]
[TimeControl "180+1"]
[EndTime "11:20:54 PDT"]
[Termination "gena217 won by resignation"]

1. e4 {[%clk 0:03:00.9]} 1... d6 {[%clk 0:02:59.8]} 2. d4 {[%clk 0:03:00.2]}
2... Nf6 {[%clk 0:03:00.7]} 3. Nc3 {[%clk 0:02:59.6]} 3... e5 {[%clk 0:03:01.6]}
4. Nf3 {[%clk 0:02:57.5]} 4... Nbd7 {[%clk 0:03:02.1]} 5. h3 {[%clk 0:02:54.5]}
5... c6 {[%clk 0:02:55.5]} 6. a4 {[%clk 0:02:51.9]} 6... Be7 {[%clk 0:02:47.8]}
7. g4 {[%clk 0:02:45.4]} 7... O-O {[%clk 0:02:47.7]} 8. Bg2 {[%clk 0:02:44.7]}
8... Qc7 {[%clk 0:02:46.9]} 9. O-O {[%clk 0:02:43.1]} 9... h6 {[%clk 0:02:33]}
10. Be3 {[%clk 0:02:37.6]} 10... b6 {[%clk 0:02:31.5]} 11. Nh4 {[%clk
0:02:24.8]} 11... Re8 {[%clk 0:02:26.4]} 12. Nf5 {[%clk 0:02:24.4]} 12... Bf8
{[%clk 0:02:26.6]} 13. Qd2 {[%clk 0:02:20.4]} 13... Bb7 {[%clk 0:02:19.4]} 14.
Rad1 {[%clk 0:02:17.8]} 14... Rad8 {[%clk 0:02:13.1]} 15. f4 {[%clk 0:02:01.2]}
15... exd4 {[%clk 0:01:22.2]} 16. Bxd4 {[%clk 0:01:54]} 16... Nh7 {[%clk
0:01:22.1]} 17. Bf2 {[%clk 0:01:40.4]} 17... Nc5 {[%clk 0:01:18.2]} 18. Bh4
{[%clk 0:01:34.5]} 18... Rd7 {[%clk 0:01:14.9]} 19. g5 {[%clk 0:01:09.9]} 19...
h5 {[%clk 0:01:05.7]} 20. Bf2 {[%clk 0:01:03.9]} 20... Ne6 {[%clk 0:01:00]} 21.
h4 {[%clk 0:00:58]} 21... a6 {[%clk 0:00:49.6]} 22. Ne2 {[%clk 0:00:50.2]} 22...
Nc5 {[%clk 0:00:48.5]} 23. Nc3 {[%clk 0:00:46.3]} 23... Ne6 {[%clk 0:00:47.3]}
24. b3 {[%clk 0:00:46.3]} 24... b5 {[%clk 0:00:47.4]} 25. axb5 {[%clk
0:00:46.2]} 25... axb5 {[%clk 0:00:48.3]} 26. Ne2 {[%clk 0:00:46.9]} 26... g6
{[%clk 0:00:46.9]} 27. Nh6+ {[%clk 0:00:46.6]} 27... Bxh6 {[%clk 0:00:46.8]} 28.
gxh6 {[%clk 0:00:47.5]} 28... c5 {[%clk 0:00:39]} 29. Ng3 {[%clk 0:00:44.9]}
29... Nef8 {[%clk 0:00:35.8]} 30. f5 {[%clk 0:00:43.6]} 30... Nf6 {[%clk
0:00:34]} 31. Rde1 {[%clk 0:00:39.3]} 31... Ng4 {[%clk 0:00:34.1]} 32. Nxh5
{[%clk 0:00:35.7]} 32... Nxf2 {[%clk 0:00:29.9]} 33. Rxf2 {[%clk 0:00:31.4]}
33... Nh7 {[%clk 0:00:29.9]} 34. Ng3 {[%clk 0:00:29.6]} 34... Qd8 {[%clk
0:00:28]} 35. Qf4 {[%clk 0:00:28.6]} 35... Qf6 {[%clk 0:00:26]} 36. fxg6 {[%clk
0:00:26.3]} 36... Qxg6 {[%clk 0:00:26.7]} 37. Nf5 {[%clk 0:00:25.4]} 37... Kh8
{[%clk 0:00:26]} 38. Re3 {[%clk 0:00:25.8]} 38... Qf6 {[%clk 0:00:25.4]} 39. Rg3
{[%clk 0:00:25.6]} 39... d5 {[%clk 0:00:23.7]} 40. Rg7 {[%clk 0:00:18.1]} 40...
dxe4 {[%clk 0:00:20.7]} 41. Ne3 {[%clk 0:00:18.7]} 41... Qxf4 {[%clk 0:00:20.3]}
42. Rxf4 {[%clk 0:00:19.6]} 42... Bc6 {[%clk 0:00:18.5]} 43. Rfxf7 {[%clk
0:00:19.1]} 43... Rxf7 {[%clk 0:00:18.4]} 44. Rxf7 {[%clk 0:00:20]} 44... Rg8
{[%clk 0:00:13.5]} 45. Rc7 {[%clk 0:00:18.7]} 45... Ba8 {[%clk 0:00:11.3]} 46.
Rxc5 {[%clk 0:00:17.9]} 46... Nf6 {[%clk 0:00:11.9]} 47. Rxb5 {[%clk 0:00:17.2]}
47... Kh7 {[%clk 0:00:12.5]} 48. Rg5 {[%clk 0:00:16.4]} 48... Kxh6 {[%clk
0:00:12]} 49. Ng4+ {[%clk 0:00:13.5]} 49... Nxg4 {[%clk 0:00:09.3]} 50. Rxg8
{[%clk 0:00:13.9]} 50... Ne3 {[%clk 0:00:09.7]} 51. c4 {[%clk 0:00:12.8]} 51...
Bb7 {[%clk 0:00:08.4]} 52. Rg5 {[%clk 0:00:10.5]} 52... Nc2 {[%clk 0:00:07.8]}
53. Rb5 {[%clk 0:00:09.8]} 53... Bc8 {[%clk 0:00:08.1]} 54. Bxe4 {[%clk
0:00:09.3]} 54... Nd4 {[%clk 0:00:08.7]} 55. Rb6+ {[%clk 0:00:09]} 55... Kh5
{[%clk 0:00:08.7]} 56. Kf2 {[%clk 0:00:08.3]} 56... Bg4 {[%clk 0:00:09]} 57. Ke3
{[%clk 0:00:08.5]} 57... Ne6 {[%clk 0:00:08.9]} 58. Rxe6 {[%clk 0:00:08.2]}
58... Bxe6 {[%clk 0:00:09.1]} 59. Kd4 {[%clk 0:00:09.1]} 59... Kxh4 {[%clk
0:00:10]} 60. b4 {[%clk 0:00:08.4]} 60... Bc8 {[%clk 0:00:10.9]} 61. b5 {[%clk
0:00:08.5]} 61... Kg5 {[%clk 0:00:11.8]} 62. c5 {[%clk 0:00:09]} 62... Kf6
{[%clk 0:00:12.7]} 63. c6 {[%clk 0:00:09.2]} 63... Ke7 {[%clk 0:00:13.6]} 64.
Kc5 {[%clk 0:00:09.9]} 64... Kd8 {[%clk 0:00:14]} 65. Kd6 {[%clk 0:00:10.6]}
65... Be6 {[%clk 0:00:14.9]} 66. b6 {[%clk 0:00:08.7]} 66... Bc8 {[%clk
0:00:14.8]} 67. b7 {[%clk 0:00:08.6]} 1-0

[Event "*** SCC Grand Prix: Titled Tuesday Blitz"]
[Site "Chess.com"]
[Date "2020.07.14"]
[Round "7"]
[White "davidkalashian"]
[Black "AsaHoffmann"]
[Result "1-0"]
[WhiteElo "2575"]
[BlackElo "2403"]
[TimeControl "180+1"]
[EndTime "11:20:54 PDT"]
[Termination "davidkalashian won on time"]

1. e4 {[%clk 0:03:00.9]} 1... d6 {[%clk 0:02:58.3]} 2. d4 {[%clk 0:03:00.5]}
2... c6 {[%clk 0:02:58]} 3. Nc3 {[%clk 0:03:00.4]} 3... a6 {[%clk 0:02:57.8]} 4.
f4 {[%clk 0:02:54]} 4... d5 {[%clk 0:02:57.3]} 5. e5 {[%clk 0:02:52.2]} 5... h5
{[%clk 0:02:56.5]} 6. Bd3 {[%clk 0:02:48.9]} 6... g6 {[%clk 0:02:54.5]} 7. Nf3
{[%clk 0:02:32.3]} 7... Bg4 {[%clk 0:02:51.1]} 8. h3 {[%clk 0:02:30.1]} 8...
Bxf3 {[%clk 0:02:50.6]} 9. Qxf3 {[%clk 0:02:31]} 9... e6 {[%clk 0:02:50.4]} 10.
Bd2 {[%clk 0:02:29.4]} 10... c5 {[%clk 0:02:49.9]} 11. dxc5 {[%clk 0:02:27]}
11... Bxc5 {[%clk 0:02:49.1]} 12. g4 {[%clk 0:02:26.2]} 12... Qh4+ {[%clk
0:02:43]} 13. Ke2 {[%clk 0:02:16.9]} 13... Nc6 {[%clk 0:02:37.6]} 14. Kd1 {[%clk
0:01:27.8]} 14... hxg4 {[%clk 0:02:28.2]} 15. Qf1 {[%clk 0:01:21.8]} 15... gxh3
{[%clk 0:02:25.4]} 16. Ne2 {[%clk 0:01:12.8]} 16... h2 {[%clk 0:02:07.4]} 17. c3
{[%clk 0:01:06.8]} 17... Nge7 {[%clk 0:02:06.7]} 18. Kc2 {[%clk 0:01:06.3]}
18... d4 {[%clk 0:01:59.1]} 19. c4 {[%clk 0:01:03.8]} 19... Nf5 {[%clk
0:01:56.9]} 20. Qf3 {[%clk 0:00:57.3]} 20... Qh3 {[%clk 0:01:45]} 21. Raf1
{[%clk 0:00:31.8]} 21... Qxf3 {[%clk 0:01:43.5]} 22. Rxf3 {[%clk 0:00:32.7]}
22... Ke7 {[%clk 0:01:29.3]} 23. Rf2 {[%clk 0:00:27.5]} 23... Ne3+ {[%clk
0:01:17.1]} 24. Kc1 {[%clk 0:00:20.2]} 24... Ng4 {[%clk 0:01:09.2]} 25. Rg2
{[%clk 0:00:20.1]} 25... Rh4 {[%clk 0:01:08.2]} 26. a3 {[%clk 0:00:19.9]} 26...
Rah8 {[%clk 0:00:59.3]} 27. b4 {[%clk 0:00:18.4]} 27... Ba7 {[%clk 0:00:57.1]}
28. Kc2 {[%clk 0:00:16.1]} 28... Ne3+ {[%clk 0:00:55.7]} 29. Bxe3 {[%clk
0:00:16.1]} 29... dxe3 {[%clk 0:00:55.3]} 30. Be4 {[%clk 0:00:15.8]} 30... Nd8
{[%clk 0:00:40]} 31. c5 {[%clk 0:00:11.8]} 31... Kd7 {[%clk 0:00:35.9]} 32. Kd3
{[%clk 0:00:11.4]} 32... Rh3 {[%clk 0:00:32.5]} 33. Rg3 {[%clk 0:00:10.1]} 33...
Kc7 {[%clk 0:00:31.4]} 34. Kxe3 {[%clk 0:00:08.9]} 34... b6 {[%clk 0:00:29.7]}
35. cxb6+ {[%clk 0:00:05.6]} 35... Bxb6+ {[%clk 0:00:29]} 36. Kf3 {[%clk
0:00:06.3]} 36... Rxg3+ {[%clk 0:00:26.8]} 37. Kxg3 {[%clk 0:00:06.2]} 37... Kd7
{[%clk 0:00:17.9]} 38. Rxh2 {[%clk 0:00:05]} 38... Rxh2 {[%clk 0:00:16.4]} 39.
Kxh2 {[%clk 0:00:05.9]} 39... a5 {[%clk 0:00:12.8]} 40. b5 {[%clk 0:00:05.3]}
40... a4 {[%clk 0:00:10.9]} 41. Nc3 {[%clk 0:00:05.3]} 41... Bc5 {[%clk
0:00:10.2]} 42. Nxa4 {[%clk 0:00:05.8]} 42... Bxa3 {[%clk 0:00:09.8]} 43. Nb6+
{[%clk 0:00:06.1]} 43... Kc7 {[%clk 0:00:08.7]} 44. Nc4 {[%clk 0:00:06.6]} 44...
Bc5 {[%clk 0:00:06.7]} 45. Kg3 {[%clk 0:00:06.8]} 45... Nb7 {[%clk 0:00:06.2]}
46. Bxb7 {[%clk 0:00:06.4]} 46... Kxb7 {[%clk 0:00:05.6]} 47. Kg4 {[%clk
0:00:06.6]} 47... Kc7 {[%clk 0:00:04.6]} 48. Kg5 {[%clk 0:00:06.6]} 48... Be7+
{[%clk 0:00:04.3]} 49. Kh6 {[%clk 0:00:06.8]} 49... Kd8 {[%clk 0:00:03.6]} 50.
Kg7 {[%clk 0:00:06.9]} 50... Ke8 {[%clk 0:00:03.3]} 51. b6 {[%clk 0:00:07.2]}
51... Bd8 {[%clk 0:00:03.3]} 52. Nd6+ {[%clk 0:00:04.4]} 52... Kd7 {[%clk
0:00:02.6]} 53. b7 {[%clk 0:00:04.2]} 53... Bc7 {[%clk 0:00:02.3]} 54. Nxf7
{[%clk 0:00:01]} 54... Kc6 {[%clk 0:00:01.4]} 55. Kxg6 {[%clk 0:00:01.9]} 55...
Kxb7 {[%clk 0:00:01.2]} 56. Ng5 {[%clk 0:00:02.8]} 1-0

[Event "*** SCC Grand Prix: Titled Tuesday Blitz"]
[Site "Chess.com"]
[Date "2020.07.14"]
[Round "7"]
[White "Onegust"]
[Black "zajka-molotok"]
[Result "0-1"]
[WhiteElo "2574"]
[BlackElo "2425"]
[TimeControl "180+1"]
[EndTime "11:20:55 PDT"]
[Termination "zajka-molotok won by resignation"]

1. e4 {[%clk 0:03:00.2]} 1... d5 {[%clk 0:02:58.4]} 2. exd5 {[%clk 0:02:59.9]}
2... Qxd5 {[%clk 0:02:59.3]} 3. Nc3 {[%clk 0:03:00.4]} 3... Qd8 {[%clk
0:02:58.9]} 4. d4 {[%clk 0:03:00.5]} 4... Nf6 {[%clk 0:02:58.4]} 5. Bg5 {[%clk
0:03:00.1]} 5... Nbd7 {[%clk 0:02:46.3]} 6. Nf3 {[%clk 0:02:48.3]} 6... g6
{[%clk 0:02:43.4]} 7. Bc4 {[%clk 0:02:45.6]} 7... Bg7 {[%clk 0:02:42]} 8. Qe2
{[%clk 0:02:45.6]} 8... O-O {[%clk 0:02:40.3]} 9. O-O-O {[%clk 0:02:44.8]} 9...
a6 {[%clk 0:02:38.3]} 10. Ne5 {[%clk 0:02:43]} 10... Nb6 {[%clk 0:02:13.6]} 11.
Bb3 {[%clk 0:02:40.9]} 11... Nbd5 {[%clk 0:01:53]} 12. Nxd5 {[%clk 0:02:26]}
12... Nxd5 {[%clk 0:01:53.9]} 13. Nf3 {[%clk 0:02:20]} 13... Be6 {[%clk
0:01:42.1]} 14. h3 {[%clk 0:02:05.6]} 14... h6 {[%clk 0:01:38.6]} 15. Bd2 {[%clk
0:02:04.4]} 15... a5 {[%clk 0:01:30.8]} 16. c4 {[%clk 0:02:02.9]} 16... Nb4
{[%clk 0:01:24.5]} 17. d5 {[%clk 0:02:01.6]} 17... Bf5 {[%clk 0:01:22.9]} 18.
Bxb4 {[%clk 0:02:01.6]} 18... axb4 {[%clk 0:01:21.5]} 19. g4 {[%clk 0:02:02.1]}
19... Bd7 {[%clk 0:01:14.2]} 20. Rhe1 {[%clk 0:02:01.1]} 20... Re8 {[%clk
0:01:09.5]} 21. Qd2 {[%clk 0:02:00.4]} 21... c5 {[%clk 0:01:01.2]} 22. Ne5
{[%clk 0:01:40.5]} 22... Ba4 {[%clk 0:00:53.3]} 23. f4 {[%clk 0:01:36.6]} 23...
Bxb3 {[%clk 0:00:44.5]} 24. axb3 {[%clk 0:01:37.5]} 24... Ra1+ {[%clk
0:00:36.7]} 25. Kc2 {[%clk 0:01:36.6]} 25... Ra2 {[%clk 0:00:36.7]} 26. h4
{[%clk 0:01:04.3]} 26... Qd6 {[%clk 0:00:27.5]} 27. h5 {[%clk 0:01:02.5]} 27...
g5 {[%clk 0:00:19.4]} 28. Re4 {[%clk 0:00:24.4]} 28... Rea8 {[%clk 0:00:15.1]}
29. Rde1 {[%clk 0:00:20.8]} 29... Qa6 {[%clk 0:00:13.2]} 30. fxg5 {[%clk
0:00:17.6]} 30... Rxb2+ {[%clk 0:00:12.9]} 31. Kxb2 {[%clk 0:00:15.6]} 31...
Qa2+ {[%clk 0:00:12.4]} 32. Kc1 {[%clk 0:00:15.9]} 32... Qa1+ {[%clk 0:00:12.2]}
33. Kc2 {[%clk 0:00:16.4]} 33... Ra2+ {[%clk 0:00:11.8]} 34. Kd3 {[%clk
0:00:16.8]} 34... Rxd2+ {[%clk 0:00:11.5]} 35. Kxd2 {[%clk 0:00:17.7]} 35...
Qb2+ {[%clk 0:00:11.2]} 36. Ke3 {[%clk 0:00:12.6]} 36... Bxe5 {[%clk 0:00:10.2]}
37. gxh6 {[%clk 0:00:11.5]} 37... Bd4+ {[%clk 0:00:10.3]} 38. Rxd4 {[%clk
0:00:02.5]} 38... Qxd4+ {[%clk 0:00:09.5]} 39. Kf3 {[%clk 0:00:02.9]} 39... Qd3+
{[%clk 0:00:08.9]} 40. Re3 {[%clk 0:00:03.3]} 40... Qd1+ {[%clk 0:00:08.6]} 41.
Kf4 {[%clk 0:00:03]} 41... Qc1 {[%clk 0:00:07.7]} 42. Kf3 {[%clk 0:00:02.8]}
42... Qf1+ {[%clk 0:00:06.7]} 43. Ke4 {[%clk 0:00:03.1]} 43... Qf6 {[%clk
0:00:06.4]} 44. Rf3 {[%clk 0:00:02.9]} 44... Qxh6 {[%clk 0:00:06]} 45. Rf4
{[%clk 0:00:03.4]} 45... Qg5 {[%clk 0:00:05.8]} 46. Kf3 {[%clk 0:00:03.6]} 46...
Qe5 {[%clk 0:00:05.4]} 47. Re4 {[%clk 0:00:03.8]} 47... Qc3+ {[%clk 0:00:05.4]}
48. Re3 {[%clk 0:00:04.7]} 48... Qd4 {[%clk 0:00:05]} 49. Re4 {[%clk 0:00:04.6]}
49... Qd1+ {[%clk 0:00:04.9]} 50. Kg3 {[%clk 0:00:04.2]} 50... Qxb3+ {[%clk
0:00:05.3]} 51. Kf4 {[%clk 0:00:04.2]} 51... Kf8 {[%clk 0:00:05.4]} 52. h6
{[%clk 0:00:04.1]} 52... Qc3 {[%clk 0:00:05.6]} 53. Kg5 {[%clk 0:00:02.6]} 53...
Qf6+ {[%clk 0:00:04.7]} 54. Kh5 {[%clk 0:00:02.4]} 54... Qg6+ {[%clk 0:00:04.8]}
55. Kh4 {[%clk 0:00:02.9]} 55... Qxe4 {[%clk 0:00:04.9]} 0-1